Workbook

Sheet Title Page
D2: Mobile TeleSystems
B5: Contents
B7: 1. MTS Group statement of profit or loss
B8: 2. MTS Group statement of financial position
B9: 3. MTS Group statement of cash flows
B10: 4. MTS Russia highlights
B11: 5. MTS Ukraine highlights
B12: 6. MTS Armenia highlights
B13: 7. MTS Turkmenistan highlights
B14: 8. MTS Belarus highlights
B15: 9. Group reconciliations
B16: 10. Debt repayment schedule
B17: 11. Average Forex rates
B18: Glossary of terms
B21: Disclaimer

Sheet Statement of profit or loss
B2: MOBILE TELESYSTEMS (NYSE: MBT)
B3: CONDENSED UNAUDITED CONSOLIDATED STATEMENTS OF PROFIT OR LOSS
C4: 2018 | H4: 2019
B5: (Amounts in millions of RUB, except share and per share amounts) | C5: Q1* | D5: Q2* | E5: Q3* | F5: Q4* | G5: Full year* | H5: Q1* | I5: Q2* | J5: Q3* | K5: Q4 | L5: Full year*
B8: Service revenue | C8: 89009 | D8: 93124 | E8: 99948 | F8: 100616 | G8: 382698 | H8: 95994 | I8: 100606 | J8: 104820 | K8: 105419 | L8: 406839
B9: Sales of goods | C9: 13063 | D9: 14041 | E9: 20258 | F9: 21406 | G9: 68768 | H9: 13839 | I9: 15559 | J9: 18225 | K9: 21644 | L9: 69267
B10: Total revenue | C10: 102072 | D10: 107165 | E10: 120206 | F10: 122022 | G10: 451466 | H10: 109833 | I10: 116165 | J10: 123045 | K10: 127063 | L10: 476106
B12: Cost of services | C12: -23302 | D12: -25062 | E12: -28250 | F12: -28314 | G12: -104929 | H12: -27556 | I12: -29104 | J12: -29032 | K12: -29303 | L12: -114995
B13: Cost of goods | C13: -11382 | D13: -13287 | E13: -18980 | F13: -19603 | G13: -63253 | H13: -12664 | I13: -14879 | J13: -17000 | K13: -19346 | L13: -63889
B14: Selling, general and administrative expenses | C14: -18724 | D14: -20885 | E14: -20503 | F14: -23314 | G14: -83427 | H14: -20892 | I14: -22203 | J14: -22433 | K14: -25268 | L14: -90796
B15: Depreciation and amortization | C15: -23394 | D15: -24020 | E15: -24046 | F15: -23926 | G15: -95386 | H15: -23598 | I15: -24155 | J15: -24058 | K15: -24468 | L15: -96279
B16: Other operating income / (expenses) | C16: -565 | D16: 713 | E16: 1382 | F16: -631 | G16: 900 | H16: 972 | I16: 118 | J16: 811 | K16: -2591 | L16: -690
B17: Operating share of the profit of associates | C17: 750 | D17: 1085 | E17: 974 | F17: 989 | G17: 3799 | H17: 1033 | I17: 1169 | J17: 1298 | K17: 1083 | L17: 4583
B18: Impairment of non-current assets | C18: 0 | D18: 0 | E18: 0 | F18: -149 | G18: -149 | H18: 0 | I18: 0 | J18: 0 | K18: 148 | L18: 148
B19: Provision for investments in distressed Ukrainian banks
B21: Operating profit | C21: 25455 | D21: 25709 | E21: 30783 | F21: 27074 | G21: 109021 | H21: 27128 | I21: 27111 | J21: 32631 | K21: 27318 | L21: 114188
B23: Finance income | C23: 1136 | D23: 1182 | E23: 1298 | F23: 1971 | G23: 5587 | H23: 1591 | I23: 1110 | J23: 923 | K23: 732 | L23: 4356
B24: Finance costs | C24: -9338 | D24: -8829 | E24: -7117 | F24: -11704 | G24: -36988 | H24: -10950 | I24: -12072 | J24: -12585 | K24: -11761 | L24: -47368
B25: Currency exchange gain or loss | C25: 328 | D25: -1883 | E25: -1479 | F25: -1009 | G25: -4043 | H25: 1069 | I25: 760 | J25: -126 | K25: 403 | L25: 2106
B26: Other income / (expenses) | C26: 1566 | D26: 33 | E26: 604 | F26: 1339 | G26: 3542 | H26: -1905 | I26: -2272 | J26: 1086 | K26: -3318 | L26: -6409
B28: Profit before tax | C28: 19147 | D28: 16212 | E28: 24089 | F28: 17671 | G28: 77119 | H28: 16933 | I28: 14637 | J28: 21929 | K28: 13374 | L28: 66873
B30: Income tax expense | C30: -4579 | D30: -3472 | E30: -5943 | F30: -1401 | G30: -15395 | H30: -3744 | I30: -3146 | J30: -5677 | K30: -3183 | L30: -15750
B32: Profit for the period from continuing operations | C32: 14568 | D32: 12740 | E32: 18146 | F32: 16270 | G32: 61724 | H32: 13189 | I32: 11491 | J32: 16252 | K32: 10191 | L32: 51123
B34: Profit / (loss) after tax for the period from discontinued operation | C34: 960 | D34: 1686 | E34: -54495 | F34: -2043 | G34: -53892 | H34: 4634 | I34: 1380 | J34: 2415 | K34: -4453 | L34: 3976
B36: Profit/(loss) for the period | C36: 15528 | D36: 14426 | E36: -36349 | F36: 14227 | G36: 7832 | H36: 17823 | I36: 12871 | J36: 18667 | K36: 5738 | L36: 55099
B38: Attributable to:
B39: Owners of the Company
B40: Profit / (loss) for the period from continuing operations | C40: 14461 | D40: 12597 | E40: 17477 | F40: 16205 | G40: 60740 | H40: 12962 | I40: 11326 | J40: 15979 | K40: 9998 | L40: 50265
B41: Profit / (loss) for the period from discontinued operation | C41: 960 | D41: 1686 | E41: -54495 | F41: -2043 | G41: -53892 | H41: 4634 | I41: 1380 | J41: 2415 | K41: -4453 | L41: 3976
B42: Profit/(loss) for the period attributable to owners of the Company | C42: 15421 | D42: 14283 | E42: -37018 | F42: 14162 | G42: 6848 | H42: 17596 | I42: 12706 | J42: 18394 | K42: 5545 | L42: 54241
B43: Non-controlling interests
B44: Profit for the period from continuing operations | C44: 107 | D44: 143 | E44: 669 | F44: 65 | G44: 984 | H44: 227 | I44: 165 | J44: 273 | K44: 193 | L44: 858
B45: Profit / (loss) for the period from discontinued operation | C45: 0 | D45: 0 | E45: 0 | F45: 0 | G45: 0 | H45: 0 | I45: 0 | J45: 0 | K45: 0 | L45: 0
B46: Profit for the period attributable to non-controlling interests | C46: 107 | D46: 143 | E46: 669 | F46: 65 | G46: 984 | H46: 227 | I46: 165 | J46: 273 | K46: 193 | L46: 858
B48: Weighted average number of common shares outstanding, in thousands - basic | C48: 1894606 | D48: 1886217 | E48: 1876421 | F48: 1837425 | G48: 1873563 | H48: 1772834 | I48: 1772834 | J48: 1772834 | K48: 1772834 | L48: 1780935
B49: Earnings per share attributable to the Group - basic
B50: EPS from continuing operations | C50: 7.63 | D50: 6.68 | E50: 9.31 | F50: 8.82 | G50: 32.42 | H50: 7.31 | I50: 6.39 | J50: 9.01 | K50: 5.64 | L50: 28.22
B51: EPS from discontinued operation | C51: 0.51 | D51: 0.89 | E51: -29.04 | F51: -1.11 | G51: -28.76 | H51: 2.61 | I51: 0.78 | J51: 1.36 | K51: -2.51 | L51: 2.23
B52: Total EPS | C52: 8.14 | D52: 7.57 | E52: -19.73 | F52: 7.71 | G52: 3.66 | H52: 9.92 | I52: 7.17 | J52: 10.37 | K52: 3.13 | L52: 30.45
B54: Weighted average number of common shares outstanding, in thousands - diluted | C54: 1896110 | D54: 1888336 | E54: 1878142 | F54: 1839147 | G54: 1875721 | H54: 1774448 | I54: 1774448 | J54: 1774448 | K54: 1774448 | L54: 1783617
B55: Earnings per share attributable to the Group - diluted
B56: EPS from continuing operations | C56: 7.63 | D56: 6.67 | E56: 9.31 | F56: 8.81 | G56: 32.38 | H56: 7.3 | I56: 6.38 | J56: 9.01 | K56: 5.63 | L56: 28.18
B57: EPS from discontinued operation | C57: 0.51 | D57: 0.89 | E57: -29.02 | F57: -1.11 | G57: -28.73 | H57: 2.61 | I57: 0.78 | J57: 1.36 | K57: -2.51 | L57: 2.23
B58: Total EPS | C58: 8.14 | D58: 7.56 | E58: -19.71 | F58: 7.7 | G58: 3.65 | H58: 9.91 | I58: 7.16 | J58: 10.37 | K58: 3.12 | L58: 30.41
B60: Adjusted OIBDA** | C60: 48849 | D60: 49729 | E60: 54829 | F60: 51149 | G60: 204556 | H60: 50726 | I60: 51266 | J60: 56689 | K60: 51638 | L60: 210319
B61: Adjusted OIBDA margin | C61: 0.479 | D61: 0.464 | E61: 0.456 | F61: 0.419 | G61: 0.453 | H61: 0.462 | I61: 0.441 | J61: 0.461 | K61: 0.406 | L61: 0.442
B63: * Data were retrospectively adjusted for discontinued operation in Ukraine
B64: ** Adjusted OIBDA for 4Q 2018 and 2018 doesn't include a loss from impairment of non-current assets of RUB 149 mln. Adjusted OIBDA for 4Q 2019 and 2019 doesn't include a reversal of impairment of non-current assets of RUB 148 mln.

Sheet Statement of financial position
B2: MOBILE TELESYSTEMS (NYSE: MBT)
B3: CONDENSED UNAUDITED CONSOLIDATED STATEMENTS OF FINANCIAL POSITION
C4: 2018 | G4: 2019
B5: (Amounts in millions of RUB, except share amounts) | C5: Mar 31 | D5: Jun 30 | E5: Sep 30 | F5: Dec 31 | G5: Mar 31 | H5: Jun 30 | I5: Sep 30 | J5: Dec 31
B6: NON-CURRENT ASSETS:
B7: Property, plant and equipment | C7: 251944 | D7: 256472 | E7: 268493 | F7: 276443 | G7: 273276 | H7: 276530 | I7: 281187 | J7: 265479
B8: Investment property | C8: 420 | D8: 732 | E8: 5392 | F8: 2177 | G8: 2056 | H8: 2798 | I8: 3433 | J8: 2986
B9: Right-of-use assets | C9: 146011 | D9: 150211 | E9: 148588 | F9: 149007 | G9: 149458 | H9: 149530 | I9: 148095 | J9: 138817
B10: Intangible assets | C10: 126298 | D10: 129582 | E10: 129002 | F10: 135069 | G10: 132289 | H10: 133947 | I10: 134782 | J10: 118404
B11: Investments in associates | C11: 9466 | D11: 11432 | E11: 10475 | F11: 10735 | G11: 5503 | H11: 5629 | I11: 6632 | J11: 6450
B12: Deferred tax assets | C12: 6569 | D12: 6509 | E12: 9767 | F12: 11190 | G12: 11552 | H12: 12404 | I12: 13237 | J12: 9975
B13: Income tax assets | C13: 0 | D13: 0 | E13: 0 | F13: 0 | G13: 0 | H13: 0 | I13: 0 | J13: 0
B14: Other non-financial assets | C14: 1748 | D14: 1583 | E14: 1660 | F14: 5038 | G14: 5173 | H14: 4910 | I14: 5290 | J14: 4981
B15: Other investments | C15: 1948 | D15: 2073 | E15: 19200 | F15: 16873 | G15: 16924 | H15: 15576 | I15: 14534 | J15: 11195
B16: Accounts receivable, related parties | C16: 2 | D16: 1127 | E16: 2 | F16: 2545 | G16: 14154 | H16: 14226 | I16: 11854 | J16: 10787
B17: Bank loans to customers and interbank loans due from banks | E17: 27347 | F17: 30653 | G17: 32889 | H17: 39954 | I17: 47025 | J17: 53472
B18: Other financial assets | C18: 5057 | D18: 4623 | E18: 3072 | F18: 7329 | G18: 6532 | H18: 5266 | I18: 5734 | J18: 6776
B19: Total non-current assets | C19: 549463 | D19: 564344 | E19: 622998 | F19: 647059 | G19: 649806 | H19: 660770 | I19: 671803 | J19: 629322
B21: CURRENT ASSETS:
B22: Inventories | C22: 13318 | D22: 17307 | E22: 19832 | F22: 18654 | G22: 16678 | H22: 14622 | I22: 16499 | J22: 15515
B23: Trade and other receivables | C23: 27914 | D23: 30001 | E23: 27251 | F23: 34543 | G23: 35513 | H23: 37015 | I23: 37984 | J23: 35595
B24: Accounts receivable, related parties | C24: 12704 | D24: 12469 | E24: 11312 | F24: 6385 | G24: 7686 | H24: 5486 | I24: 8315 | J24: 5872
B25: Bank loans to customers and interbank loans due from banks | E25: 37083 | F25: 32385 | G25: 32715 | H25: 35933 | I25: 38922 | J25: 39370
B26: Short-term investments | C26: 26354 | D26: 52970 | E26: 46354 | F26: 47863 | G26: 26588 | H26: 15165 | I26: 15700 | J26: 25618
B27: VAT receivable | C27: 6859 | D27: 9060 | E27: 9233 | F27: 7415 | G27: 8525 | H27: 9335 | I27: 11088 | J27: 9350
B28: Income tax assets | C28: 3504 | D28: 2594 | E28: 2417 | F28: 3887 | G28: 1847 | H28: 5949 | I28: 2560 | J28: 4301
B29: Assets held for sale | C29: 1416 | D29: 1461 | E29: 1262 | F29: 2694 | G29: 1085 | H29: 663 | I29: 623 | J29: 497
B30: Advances paid and prepaid expenses, contract and other non-financial current assets | C30: 3616 | D30: 4694 | E30: 4551 | F30: 5546 | G30: 4625 | H30: 4679 | I30: 5179 | J30: 5842
B31: Other financial current assets | E31: 24059 | F31: 25487 | G31: 18957 | H31: 22757 | I31: 21068 | J31: 14558
B32: Cash and cash equivalents | C32: 56923 | D32: 57292 | E32: 101144 | F32: 84075 | G32: 66346 | H32: 51243 | I32: 52518 | J32: 38070
B33: Total current assets | C33: 152608 | D33: 187848 | E33: 284498 | F33: 268934 | G33: 220565 | H33: 202847 | I33: 210456 | J33: 194588
B35: Total assets | C35: 702071 | D35: 752192 | E35: 907496 | F35: 915993 | G35: 870371 | H35: 863617 | I35: 882259 | J35: 823910
B37: EQUITY:
B38: Equity attributable to owners of the Company* | C38: 131608 | D38: 109268 | E38: 59742 | F38: 65274 | G38: 65958 | H38: 36722 | I38: 43574 | J38: 33068
B39: Non-controlling interests | C39: 4206 | D39: 3242 | E39: 12300 | F39: 12291 | G39: 4766 | H39: 3816 | I39: 4073 | J39: 3326
B40: Total equity | C40: 135814 | D40: 112510 | E40: 72042 | F40: 77565 | G40: 70724 | H40: 40538 | I40: 47647 | J40: 36394
B42: NON-CURRENT LIABILITIES:
B43: Borrowings | C43: 218400 | D43: 249836 | E43: 362082 | F43: 365072 | G43: 343966 | H43: 308245 | I43: 277209 | J43: 271573
B44: Lease obligation | C44: 135327 | D44: 141472 | E44: 142223 | F44: 144740 | G44: 147741 | H44: 147722 | I44: 146698 | J44: 140080
B45: Deferred tax liabilities | C45: 24405 | D45: 23856 | E45: 25754 | F45: 24439 | G45: 21528 | H45: 21085 | I45: 21670 | J45: 17866
B46: Provisions | C46: 2326 | D46: 3529 | E46: 3343 | F46: 3391 | G46: 4730 | H46: 5187 | I46: 5314 | J46: 4761
B47: Bank deposits and liabilities | E47: 9607 | F47: 2633 | G47: 2879 | H47: 2930 | I47: 1910 | J47: 1805
B48: Other financial liabilities | C48: 1530 | D48: 770 | E48: 1399 | F48: 481 | G48: 620 | H48: 706 | I48: 251 | J48: 955
B49: Other non-financial liabilities | C49: 2823 | D49: 2573 | E49: 2460 | F49: 2201 | G49: 2103 | H49: 2029 | I49: 1983 | J49: 2019
B50: Total non-current liabilities | C50: 384811 | D50: 422036 | E50: 546868 | F50: 542957 | G50: 523567 | H50: 487904 | I50: 455035 | J50: 439059
B52: CURRENT LIABILITIES:
B53: Borrowings | C53: 72292 | D53: 59973 | E53: 13738 | F53: 3063 | G53: 42835 | H53: 68739 | I53: 98602 | J53: 71746
B54: Lease obligation | C54: 15876 | D54: 15910 | E54: 16046 | F54: 15812 | G54: 16345 | H54: 17591 | I54: 18063 | J54: 15228
B55: Provisions | C55: 12586 | D55: 7890 | E55: 65969 | F55: 70911 | G55: 14185 | H55: 8815 | I55: 9542 | J55: 11526
B56: Trade and other payables | C56: 42205 | D56: 93160 | E56: 55408 | F56: 53623 | G56: 48386 | H56: 84300 | I56: 65622 | J56: 71808
B57: Accounts payable, related parties | C57: 1194 | D57: 1940 | E57: 1750 | F57: 1301 | G57: 601 | H57: 909 | I57: 1055 | J57: 558
B58: Bank deposits and liabilities | E58: 98896 | F58: 108821 | G58: 105013 | H58: 110569 | I58: 137318 | J58: 136147
B59: Income tax liabilities | C59: 2656 | D59: 1853 | E59: 1441 | F59: 1792 | G59: 2380 | H59: 1564 | I59: 1841 | J59: 784
B60: Other financial liabilities | C60: 2017 | D60: 2667 | E60: 2812 | F60: 4648 | G60: 6023 | H60: 1804 | I60: 1381 | J60: 1424
B61: Other non-financial and contract liabilities | C61: 32620 | D61: 34253 | E61: 32526 | F61: 35500 | G61: 40312 | H61: 40884 | I61: 46153 | J61: 39236
B62: Total current liabilities | C62: 181446 | D62: 217646 | E62: 288586 | F62: 295471 | G62: 276080 | H62: 335175 | I62: 379577 | J62: 348457
B64: Total equity and liabilities | C64: 702071 | D64: 752192 | E64: 907496 | F64: 915993 | G64: 870371 | H64: 863617 | I64: 882259 | J64: 823910
B66: Net debt | C66: ='Group reconciliations'!C15 -> 204137 | D66: ='Group reconciliations'!D15 -> 194491 | E66: ='Group reconciliations'!E15 -> 226878 | F66: ='Group reconciliations'!F15 -> 232771.8626 | G66: ='Group reconciliations'!G15 -> 292409 | H66: ='Group reconciliations'!H15 -> 310104 | I66: ='Group reconciliations'!I15 -> 306977 | J66: ='Group reconciliations'!J15 -> 280454
B67: Net debt/LTM adjusted OIBDA | C67: ='Group reconciliations'!C24 -> 1.1 | D67: ='Group reconciliations'!D24 -> 1.1 | E67: ='Group reconciliations'!E24 -> 1.2 | F67: ='Group reconciliations'!F24 -> 1.2 | G67: ='Group reconciliations'!G24 -> 1.5 | H67: ='Group reconciliations'!H24 -> 1.6 | I67: ='Group reconciliations'!I24 -> 1.6 | J67: ='Group reconciliations'!J24 -> 1.5
B70: *Common stock: 1,998,381,575 shares issued with a par value of 0.1 rubles as of September 30, 2019 and 1,998,381,575 shares issued with a par value of 0.1 rubles as of December 31, 2019. Treasury stock: 225 547 422 common shares at cost as of September 30, 2019 and 225 547 422 common shares at cost as of December 31, 2019

Sheet Statement of cash flows
B2: MOBILE TELESYSTEMS (NYSE: MBT)
B3: CONDENSED UNAUDITED CONSOLIDATED STATEMENTS OF CASH FLOWS
C4: 2018 | G4: 2019
B5: (Amounts in millions of RUB) | C5: Mar 31 | D5: Jun 30 | E5: Sep 30 | F5: Dec 31 | G5: Mar 31 | H5: Jun 30 | I5: Sep 30 | J5: Dec 31 | K5: Dec 31 | L5: Dec 31
J6: Cash flows from discontinued operations | K6: Cash flows from continuing operations | L6: Total
B7: CASH FLOWS FROM OPERATING ACTIVITIES:
B9: Profit for the period | C9: 15529 | D9: 29953 | E9: -6397 | F9: 7832 | G9: 17821 | H9: 30693 | I9: 49359 | J9: 3979 | K9: 51120 | L9: 55099
B11: Adjustments for:
B12: Depreciation and amortization | C12: 25322 | D12: 51608 | E12: 78063 | F12: 104588 | G12: 26418 | H12: 53393 | I12: 80323 | J12: 10669 | K12: 96279 | L12: 106948
B13: Finance income | C13: -1171 | D13: -2422 | E13: -3837 | F13: -5981 | G13: -1757 | H13: -2923 | I13: -3976 | J13: -449 | K13: -4356 | L13: -4805
B14: Finance costs | C14: 9570 | D14: 18680 | E14: 26074 | F14: 38165 | G14: 11281 | H14: 23736 | I14: 36695 | J14: 1344 | K14: 47367 | L14: 48711
B15: Income tax expense | C15: 4750 | D15: 8597 | E15: 14817 | F15: 16969 | G15: 4136 | H15: 7615 | I15: 14076 | J15: 1921 | K15: 15750 | L15: 17671
B16: Currency exchange (gain) / loss | C16: -404 | D16: 1097 | E16: 2946 | F16: 6892 | G16: -4548 | H16: -5346 | I16: -5409 | J16: -3522 | K16: -2106 | L16: -5628
B17: Change in fair value of financial instruments | C17: -1519 | D17: -2046 | E17: -3554 | F17: -5385 | G17: 5205 | H17: 5579 | I17: 5239 | J17: -43 | K17: 7455 | L17: 7412
B18: Non-cash provision for investments
B19: Share of the (profit) / loss of associates | C19: -835 | D19: -1756 | E19: -2252 | F19: -2889 | G19: -4379 | H19: -5557 | I19: -6966 | J19: 0 | K19: -8079 | L19: -8079
B20: Inventory obsolescence expense | C20: 369 | D20: 1568 | E20: 2288 | F20: 3326 | G20: 545 | H20: 944 | I20: 1510 | J20: 18 | K20: 2189 | L20: 2207
B21: Allowance for doubtful accounts | C21: 871 | D21: 1445 | E21: 1937 | F21: 3201 | G21: 598 | H21: 1313 | I21: 2045 | J21: 5 | K21: 3426 | L21: 3432
B22: Bank reserves | E22: 236 | F22: 493 | G22: 711 | H22: 1555 | I22: 2637 | J22: 0 | K22: 4329 | L22: 4329
B23: Change in provisions | C23: 2723 | D23: -2041 | E23: -2391 | F23: -1473 | G23: 2407 | H23: -3174 | I23: -2879 | J23: 344 | K23: -39 | L23: 305
B24: Provision for fines and penalties related to SEC investigation into former operations in Uzbekistan | E24: 55752 | F24: 55752 | G24: 0 | H24: 0 | I24: 0 | J24: 0 | K24: 0 | L24: 0
B25: Non-cash gain from reentrance into Uzbekistan
B26: Other non-cash items | C26: 3 | D26: -797 | E26: -2036 | F26: -3479 | G26: -2747 | H26: -3426 | I26: -6343 | J26: -197 | K26: -6684 | L26: -6882
B27: Loss on sale of Ukrain operations | J27: 5499 | K27: 0 | L27: 5499
B28: Impairment of non-current assets | F28: 149 | G28: 0 | H28: 0 | I28: 0 | J28: 0 | K28: -148 | L28: -148
B29: Non-cash loss on sale of subsidiary in Uzbekistan
B31: Movements in operating assets and liabilities:
B32: (Increase)/Decrease in trade and other receivables and contract assets | C32: -352 | D32: -2357 | E32: 1108 | F32: 438 | G32: -5518 | H32: -4859 | I32: -6476 | J32: -47 | K32: -3761 | L32: -3808
B33: (Increase)/decrease in bank loans to customers and interbank loans to banks | E33: -6686 | F33: -15367 | G33: -3599 | H33: -14444 | I33: -25907 | J33: 0 | K33: -34452 | L33: -34452
B34: (Increase)/Decrease in inventory | C34: -3667 | D34: -8812 | E34: -11498 | F34: -11292 | G34: 1340 | H34: 3017 | I34: 634 | J34: -378 | K34: 381 | L34: 3
B35: (Increase)/Decrease in VAT receivable | C35: 331 | D35: -1804 | E35: -1786 | F35: 72 | G35: -1138 | H35: -1942 | I35: -3637 | J35: -47 | K35: -2475 | L35: -2522
B36: (Increase)/Decrease in advances paid and prepaid expenses | C36: 569 | D36: 482 | E36: 1397 | F36: 1429 | G36: 5601 | H36: 1975 | I36: 2839 | J36: -55 | K36: 3533 | L36: 3478
B37: Increase/(Decrease) in trade and other payables, contract liabilities and other liabilities | C37: -8042 | D37: -857 | E37: -3262 | F37: -59 | G37: 2086 | H37: 2349 | I37: 9160 | J37: 845 | K37: 5980 | L37: 6825
B38: Increase/(Decrease) in bank deposits and other bank liabilities | E38: 1806 | F38: 4100 | G38: -2257 | H38: 3160 | I38: 28718 | J38: 0 | K38: 27823 | L38: 27823
B39: Payment of fines and penalties related to SEC investigation into former operations in Uzbekistan | G39: -55607 | H39: -55607 | I39: -55607 | J39: 0 | K39: -55607 | L39: -55607
B40: Dividends received | C40: 874 | D40: 1674 | E40: 2525 | F40: 3726 | G40: 749 | H40: 2250 | I40: 2525 | J40: 0 | K40: 3707 | L40: 3707
B41: Income taxes paid | C41: -5201 | D41: -9772 | E41: -14979 | F41: -19777 | G41: -5220 | H41: -14727 | I41: -17667 | J41: -1607 | K41: -22336 | L41: -23943
B42: Interest received | C42: 4774 | D42: 5919 | E42: 7052 | F42: 10016 | G42: 1900 | H42: 3351 | I42: 4238 | J42: 341 | K42: 4922 | L42: 5263
B43: Interest paid, net of interest capitalised | C43: -8799 | D43: -18297 | E43: -27103 | F43: -37056 | G43: -10124 | H43: -24066 | I43: -34879 | J43: -1278 | K43: -44908 | L43: -46186
B44: NET CASH PROVIDED BY OPERATING ACTIVITIES | C44: 35695 | D44: 70062 | E44: 110221 | F44: 154390 | G44: -16093 | H44: 4859 | I44: 70252 | J44: 17342 | K44: 89310 | L44: 106652
B47: CASH FLOWS FROM INVESTING ACTIVITIES:
B49: Aquisition of subsidiary, net of cash acquired | C49: -3286 | D49: -3093 | E49: -3458 | F49: -3444 | G49: -1639 | H49: -2030 | I49: -2052 | J49: 0 | K49: -2052 | L49: -2052
B50: Purchases of property, plant and equipment | C50: -13096 | D50: -27753 | E50: -44660 | F50: -64731 | G50: -12457 | H50: -27513 | I50: -45000 | J50: -6140 | K50: -62325 | L50: -68465
B51: Purchases of other intangible assets (excl. cost to obtain contracts) | C51: -3574 | D51: -6484 | E51: -10758 | F51: -21751 | G51: -4157 | H51: -11781 | I51: -16087 | J51: -2022 | K51: -20994 | L51: -23016
B52: Cost to obtain and fulfill contracts, paid | C52: -1099 | D52: -2085 | E52: -3524 | F52: -4764 | G52: -1093 | H52: -2307 | I52: -3692 | J52: -299 | K52: -4352 | L52: -4651
B53: Purchase of 3G and 4G licenses in Ukraine, Russia and Armenia | C53: -1366 | D53: -5527 | E53: -5527 | F53: -5527 | G53: 0 | H53: -23 | I53: -255 | J53: 0 | K53: -255 | L53: -255
B54: Purchase of Avantage | E54: -7559 | F54: -7559 | G54: 0 | H54: 0 | I54: 0 | J54: 0 | K54: 0 | L54: 0
B55: Proceeds from sale of property, plant and equipment and assets held for sale | C55: 442 | D55: 2289 | E55: 3924 | F55: 5905 | G55: 1040 | H55: 2903 | I55: 5067 | J55: 122 | K55: 6414 | L55: 6536
B56: Purchases of short-term and other investments | C56: -3280 | D56: -29404 | E56: -16389 | F56: -18754 | G56: -5177 | H56: -11812 | I56: -14862 | J56: -3326 | K56: -19388 | L56: -22714
B57: Proceeds from sale of short-term and other investments | C57: 23243 | D57: 24112 | E57: 34503 | F57: 38596 | G57: 24410 | H57: 37959 | I57: 41842 | J57: 2799 | K57: 44340 | L57: 47139
B58: Investments in associates | C58: -1158 | D58: -2101 | E58: -3871 | F58: -3871 | G58: 0 | H58: 0 | I58: 0 | J58: 0 | K58: -75 | L58: -75
B59: Cash payments and proceeds related to swap contracts | C59: -424 | D59: 49 | E59: 6001 | F59: 6892 | G59: -1039 | H59: -740 | I59: -781 | J59: 0 | K59: -2459 | L59: -2459
B60: Proceeds from sale of subsidiaries | F60: 619 | G60: 0 | H60: 0 | I60: 0 | J60: -4181 | K60: 41567 | L60: 37386
B61: Proceeds from sale of associates | G61: 3000 | H61: 3000 | I61: 3067 | J61: 0 | K61: 3067 | L61: 3067
B62: Other investing activities | C62: -272 | D62: 0 | E62: 0 | F62: 0 | G62: 0 | H62: 5 | I62: 5 | J62: 0 | K62: 5 | L62: 5
B63: Disposal of discontinued operation, net of cash disposed of
B64: NET CASH USED IN INVESTING ACTIVITIES: | C64: -3870 | D64: -49997 | E64: -51318 | F64: -78389 | G64: 2888 | H64: -12339 | I64: -32748 | J64: -13047 | K64: -16507 | L64: -29554
B67: CASH FLOWS FROM FINANCING ACTIVITIES:
B68: Repayment of notes | C68: 0 | D68: -8305 | E68: -17225 | F68: -27983 | G68: 0 | H68: 0 | I68: -189 | J68: 0 | K68: -189 | L68: -189
B69: Proceeds from issuance of notes | C69: 20000 | D69: 27550 | E69: 27550 | F69: 27550 | G69: 10000 | H69: 22500 | I69: 47500 | J69: 0 | K69: 72500 | L69: 72500
B70: Repurchase of common stock | C70: -7660 | D70: -7660 | E70: -14583 | F70: -22655 | G70: -10365 | H70: -15899 | I70: -15922 | J70: 0 | K70: -15922 | L70: -15922
B71: Notes and debt issuance cost paid | C71: -33 | D71: -39 | E71: -39 | F71: -39 | G71: -22 | H71: -51 | I71: -71 | J71: -1050 | K71: 939 | L71: -111
B72: Lease obligation principal paid | C72: -3226 | D72: -6844 | E72: -9483 | F72: -13577 | G72: -3552 | H72: -7348 | I72: -11240 | J72: 0 | K72: -15154 | L72: -15154
B73: Dividends paid | C73: -2 | D73: -2 | E73: -45244 | F73: -50054 | G73: -1 | H73: -2 | I73: -36541 | J73: 0 | K73: -52505 | L73: -52505
B74: Cash flows from transactions under common control | C74: 0 | D74: 0 | E74: -6872 | F74: -13242 | G74: -11484 | H74: -13520 | I74: -13866 | J74: -64 | K74: -15248 | L74: -15312
B75: Proceeds from loans | C75: 0 | D75: 20000 | E75: 95000 | F75: 95000 | G75: 12413 | H75: 1013 | I75: 52872 | J75: 0 | K75: 62415 | L75: 62415
B76: Repayment of loans | C76: -13748 | D76: -19170 | E76: -19106 | F76: -20076 | G76: -25 | H76: -10525 | I76: -90704 | J76: 0 | K76: -156511 | L76: -156511
B77: Cash inflow under credit guarantee agreement related to foreign-currency hedge | C77: -981 | D77: -981 | E77: -981 | F77: -981 | G77: 0 | H77: 0 | I77: 0 | J77: 0 | K77: 0 | L77: 0
B78: Other financing activities | C78: -33 | D78: 123 | E78: 121 | F78: 133 | G78: 0 | H78: 0 | I78: 342 | J78: 0 | K78: 341 | L78: 341
B79: NET CASH USED IN FINANCING ACTIVITIES | C79: -5683 | D79: 4672 | E79: 9138 | F79: -25924 | G79: -3036 | H79: -23832 | I79: -67819 | J79: -1114 | K79: -119334 | L79: -120448
B82: Effect of exchange rate changes on cash and cash equivalents | C82: 195 | D82: 1969 | E82: 2517 | F82: 3412 | G82: -1488 | H82: -1520 | I82: -1242 | J82: -385 | K82: -2270 | L82: -2655
B83: Intercompany cash flows | J83: -9460 | K83: 9460
B85: NET INCREASE / (DECREASE) IN CASH AND CASH EQUIVALENTS: | C85: 26337 | D85: 26706 | E85: 70558 | F85: 53489 | G85: -17729 | H85: -32832 | I85: -31557 | J85: -6664 | K85: -39341 | L85: -46005
B87: CASH AND CASH EQUIVALENTS, beginning of the period | C87: 30586 | D87: 30586 | E87: 30586 | F87: 30586 | G87: 84075 | H87: 84075 | I87: 84075 | J87: 6664 | K87: 77411 | L87: 84075
B89: CASH AND CASH EQUIVALENTS, end of the period | C89: 56923 | D89: 57292 | E89: 101144 | F89: 84075 | G89: 66346 | H89: 51243 | I89: 52518 | J89: 0 | K89: 38070 | L89: 38070
B90: Less cash and cash equivalents within assets held for sale
B91: CASH AND CASH EQUIVALENTS, end of the period | C91: 56923 | D91: 57292 | E91: 101144 | F91: 84075 | G91: 66346 | H91: 51243 | I91: 52518 | J91: 0 | K91: 38070 | L91: 38070
B93: CAPEX (for the quarter) | C93: =-SUM(C50:C51, C53) -> 18036 | D93: =-SUM(D50:D51, D53)+SUM(C50:C51, C53) -> 21728 | E93: =-SUM(E50:E51, E53)+SUM(D50:D51, D53) -> 21181 | F93: =-SUM(F50:F51, F53)+SUM(E50:E51, E53) -> 31064 | G93: =-SUM(G50:G51, G53) -> 16614 | H93: =-SUM(H50:H51, H53)+SUM(G50:G51, G53) -> 22703 | I93: =-SUM(I50:I51, I53)+SUM(H50:H51, H53) -> 22025 | L93: =-SUM(L50:L51, L53)+SUM(I50:I51, I53) -> 30394
B94: CAPEX excluding purchases of 3G, 4G license in Ukraine and Russia and net of cash proceeds under sharing agreement (for the quarter) | C94: =-SUM(C50:C51) -> 16670 | D94: =-SUM(D50:D51)+SUM(C50:C51) -> 17567 | E94: =-SUM(E50:E51)+SUM(D50:D51) -> 21181 | F94: =-SUM(F50:F51)+SUM(E50:E51) -> 31064 | G94: =-SUM(G50:G51) -> 16614 | H94: =-SUM(H50:H51)+SUM(G50:G51) -> 22680 | I94: =-SUM(I50:I51)+SUM(H50:H51) -> 21793 | L94: =-SUM(L50:L51)+SUM(I50:I51) -> 30394
B95: CAPEX as % of Revenue* | C95: 0.154 | D95: 0.154 | E95: 0.166 | F95: 0.239 | G95: 0.141 | H95: 0.181 | I95: 0.163 | L95: n/a
B96: Cost to obtain and fulfill contracts | C96: =-C52 -> 1099 | D96: =-D52+C52 -> 986 | E96: =-E52+D52 -> 1439 | F96: =-F52+E52 -> 1240 | G96: =-G52 -> 1093 | H96: =-H52+G52 -> 1214 | I96: =-I52+H52 -> 1385 | L96: =-L52+I52 -> 959
B98: FCF | C98: 13924 | D98: 30835 | E98: ='Group reconciliations'!E50 -> 40315 | F98: ='Group reconciliations'!F50 -> 54794 | G98: ='Group reconciliations'!G50 -> -31399 | H98: ='Group reconciliations'!H50 -> -32869 | I98: ='Group reconciliations'!I50 -> 11555 | L98: ='Group reconciliations'!J50 -> 55382
B99: * For the period Q1 2018 - Q4 2019 Group CAPEX includes cash spent on CAPEX in Ukraine (discontinued operation), while Group revenue for the period Q1 2018-Q4 2019 doesn't include revenue from operations in Ukraine (discontinued operation)

Sheet Russia
B2: Country highlights: | C2: 2018 | H2: 2019
B3: Russia | C3: Q1 | D3: Q2 | E3: Q3 | F3: Q4 | G3: Full year | H3: Q1 | I3: Q2 | J3: Q3 | K3: Q4 | L3: Full year
B5: RUB/USD | C5: 58.41 | D5: 61.8 | E5: ='Ave Forex Rates'!F5 -> 65.5 | F5: ='Ave Forex Rates'!G5 -> 66.5 | G5: ='Ave Forex Rates'!H5 -> 62.71 | H5: ='Ave Forex Rates'!I5 -> 66.13 | I5: ='Ave Forex Rates'!J5 -> 64.56 | J5: ='Ave Forex Rates'!K5 -> 64.57 | K5: ='Ave Forex Rates'!L5 -> 63.72 | L5: =K5 -> 63.72
B7: Amounts in millions of RUB, unless stated
B8: Total revenue | C8: 101050 | D8: 106391 | E8: 119130 | F8: 121512 | G8: 448083 | H8: 109073 | I8: 115322 | J8: 121947 | K8: 126215 | L8: 472557
B9: Service revenue | C9: 87956 | D9: 92295 | E9: 98847 | F9: 99811 | G9: 378909 | H9: 95133 | I9: 99728 | J9: 103824 | K9: 104481 | L9: 403166
B10: - mobile | C10: 74313 | D10: 78358 | E10: 80719 | F10: 79259 | G10: 312649 | H10: 75397 | I10: 79685 | J10: 83140 | K10: 81845 | L10: 320067
B11: - fixed line | C11: 15061 | D11: 15177 | E11: 14882 | F11: 15281 | G11: 60401 | H11: 15076 | I11: 14997 | J11: 14982 | K11: 15049 | L11: 60104
B12: - Bank revenue | E12: 5551 | F12: 6300 | G12: 11851 | H12: 6299 | I12: 6850 | J12: 7646 | K12: 9042 | L12: 29837
B13: - integration | C13: 1377 | D13: 1519 | E13: 1832 | F13: 2664 | G13: 7392 | H13: 2278 | I13: 2690 | J13: 2654 | K13: 2667 | L13: 10289
B14: - event ticketing, eSport and other | C14: 237 | D14: 201 | E14: 229 | F14: 602 | G14: 1269 | H14: 313 | I14: 215 | J14: 280 | K14: 721 | L14: 1529
B15: - eliminations | C15: -3032 | D15: -2960 | E15: -4366 | F15: -4295 | G15: -14653 | H15: -4230 | I15: -4709 | J15: -4878 | K15: -4843 | L15: -18660
B16: Sales of goods | C16: 13094 | D16: 14096 | E16: 20283 | F16: 21701 | G16: 69174 | H16: 13940 | I16: 15594 | J16: 18123 | K16: 21734 | L16: 69391
B17: - sales of handsets and accessories | C17: 11088 | D17: 12275 | E17: 17049 | F17: 19433 | G17: 59845 | H17: 12514 | I17: 12354 | J17: 16438 | K17: 17589 | L17: 58895
B18: - sales of software products | C18: 2006 | D18: 1821 | E18: 3234 | F18: 2268 | G18: 9329 | H18: 1426 | I18: 3240 | J18: 1685 | K18: 4145 | L18: 10496
B19: Operating profit | C19: 26801 | D19: 27719 | E19: 32125 | F19: 29591 | G19: 116236 | H19: 28724 | I19: 28763 | J19: 33894 | K19: 29271 | L19: 120652
B20: - operating margin, % | C20: 0.2652251361 | D20: 0.261 | E20: 0.27 | F20: 0.244 | G20: 0.259 | H20: 0.263 | I20: 0.249 | J20: 0.278 | K20: 0.232 | L20: 0.255
B21: Depreciation and amortization | C21: 22816 | D21: 23360 | E21: 23420 | F21: 23235 | G21: 92831 | H21: 22969 | I21: 23510 | J21: 23420 | K21: 24014 | L21: 93913
B22: - as % of revenue | C22: 0.2257892133 | D22: 0.22 | E22: 0.197 | F22: 0.191 | G22: 0.207 | H22: 0.211 | I22: 0.204 | J22: 0.192 | K22: 0.19 | L22: 0.199
B23: Adjusted OIBDA ** | C23: 49617 | D23: 51080 | E23: 55544 | F23: 52997 | G23: 209238 | H23: 51693 | I23: 52274 | J23: 57313 | K23: 53288 | L23: 214568
B24: Adjusted OIBDA margin, % | C24: 0.4910143493 | D24: 0.48 | E24: 0.466 | F24: 0.436 | G24: 0.467 | H24: 0.474 | I24: 0.453 | J24: 0.47 | K24: 0.422 | L24: 0.454
B25: Net profit | C25: 15285 | D25: 14694 | E25: 18820 | F25: 19296 | G25: 68095 | H25: 19122 | I25: 12450 | J25: 17510 | K25: 49875 | L25: 98957
B26: - margin, % | C26: 0.1512617516 | D26: 0.138 | E26: 0.158 | F26: 0.159 | G26: 0.152 | H26: 0.175 | I26: 0.108 | J26: 0.144 | K26: 0.395 | L26: 0.209
B27: CAPEX | C27: 15367 | D27: 15492 | E27: 18437 | F27: 25845 | G27: 75141 | H27: 14499 | I27: 20557 | J27: 19108 | K27: 27647 | L27: 81811
B28: CAPEX excluding purchases of 4G license | C28: 15367 | D28: 15492 | E28: 18437 | F28: 25845 | G28: 75141 | H28: 14499 | I28: 20557 | J28: 19108 | K28: 27647 | L28: 81811
B29: - as % of revenue | C29: 0.152 | D29: 0.146 | E29: 0.155 | F29: 0.213 | G29: 0.168 | H29: 0.133 | I29: 0.178 | J29: 0.157 | K29: 0.219 | L29: 0.173
B30: Cost to obtain and fulfill contracts | C30: 1042 | D30: 932 | E30: 1385 | F30: 1240 | G30: 4599 | H30: 1024 | I30: 1147 | J30: 1304 | K30: 877 | L30: 4352
B32: MTS-Bank
B33: Amounts in millions of RUB, unless stated
B34: Revenue | E34: 5551 | F34: 6300 | G34: 11851 | H34: 6299 | I34: 6850 | J34: 7646 | K34: 9042 | L34: 29837
B35: OIBDA | E35: 1428 | F35: 410 | G35: 1838 | H35: 24 | I35: 1406 | J35: 941 | K35: 835 | L35: 3206
B36: OIBDA margin, % | E36: 0.257 | F36: 0.065 | G36: 0.155 | H36: 0.004 | I36: 0.205 | J36: 0.123 | K36: 0.092 | L36: 0.107
B37: Net profit | E37: 613 | F37: -143 | G37: 470 | H37: 288 | I37: 70 | J37: 717 | K37: 244 | L37: 1319
B38: - margin, % | E38: 0.111 | F38: -0.023 | G38: 0.04 | H38: 0.046 | I38: 0.01 | J38: 0.094 | K38: 0.027 | L38: 0.044
B40: MTS-bank, retail loan portfolio
B41: Total retail loan portfolio at the end of the period, mln RUB | E41: 43077 | F41: 52479 | G41: 52479 | H41: 58761 | I41: 67038 | J41: 79733 | K41: 90684 | L41: 90684
B43: Operating highlights
B44: Mobile business
B45: MTS subscribers, mln | C45: 78.1 | D45: 78.1 | E45: 77.96 | F45: 78.01 | G45: 78.01 | H45: 77.6 | I45: 78.1 | J45: 78.8 | K45: 79.1 | L45: =K45 -> 79.1
B46: Total traffic, bln minutes | C46: 88.2 | D46: 93.2 | E46: 91.4 | F46: 93 | G46: 365.8 | H46: 87.9 | I46: 91.3 | J46: 91.6 | K46: 92.1 | L46: 362.9
B47: Total smartphone data, Tb | C47: 616816 | D47: 665208 | E47: 751864 | F47: 866118 | G47: 2900006 | H47: 927772 | I47: 1009399 | J47: 1160004 | K47: 1299398 | L47: 4396573
B49: Fixed business
B50: Residential
B51: Number of subscribers, thou
B52: - fixed telephony | C52: 3160 | D52: 3124 | E52: 3081 | F52: 3028 | G52: 3028 | H52: 2971 | I52: 2920.043 | J52: 2890.749 | K52: 2836.477 | L52: 2836.477
B53: - internet | C53: 3100 | D53: 3145 | E53: 3182 | F53: 3246 | G53: 3246 | H53: 3316 | I53: 3349.556 | J53: 3372.567 | K53: 3481 | L53: 3481
B54: - TV | C54: 2830 | D54: 2835 | E54: 2853 | F54: 2901 | G54: 2901 | H54: 2934 | I54: 2947.928 | J54: 2970.993 | K54: 3007 | L54: 3007
B55: MGTS (B2C+B2B)
B56: - GPON subs, thou | C56: 1875 | D56: 1894 | E56: 1915 | F56: 1948 | G56: 1948 | H56: 1979 | I56: 1996 | J56: 2043 | K56: 2077 | L56: 2077
B58: Other operating highlights
B59: Mobile Internet indicators
B60: Mobile Internet users penetration, as % from monthly active users | C60: 0.541 | D60: 0.554 | E60: 0.57 | F60: 0.588 | G60: 0.588 | H60: 0.598 | I60: 0.6125 | J60: 0.622 | K60: 0.629 | L60: 0.629
B61: Smartphones penetration, as % of all registered mobile phones on MTS network* | C61: 0.659 | D61: 0.674 | E61: 0.689 | F61: 0.701 | G61: 0.701 | H61: 0.713 | I61: 0.725 | J61: 0.733 | K61: 0.745 | L61: 0.745
B62: My MTS
B63: 1-month active users, thou | C63: 10995 | D63: 11967.761 | E63: 13165.31 | F63: 14134.424 | G63: 14134.424 | H63: 15358.609 | I63: 17706.466 | J63: 19514.946 | K63: 20342.425 | L63: 20342.425
B64: E-commerce
B65: Online sales, mln | C65: 1361 | D65: 1537 | E65: 2085 | F65: 2008 | G65: 6991 | H65: 1548 | I65: 1707 | J65: 2116 | K65: 2673 | L65: 8044
B66: * MTS defines a smartphone as a handset with one of the following operating systems: iOS, Android, Windows, Blackberry OS, Symbian, Linux or Bada. ** Adjusted OIBDA for 4Q 2018 and 2018 doesn't nclude a loss from impairment of non-current assets of RUB 172 mln.

Sheet Ukraine
B2: Country highlights:* | C2: 2018 | H2: 2019
B3: Ukraine | C3: Q1 | D3: Q2 | E3: Q3 | F3: Q4 | G3: Full year | H3: Q1 | I3: Q2 | J3: Q3 | K3: Q4** | L3: Full year**
B5: Amounts in millions of RUB, unless stated
B6: Revenue | C6: 6046 | D6: 7403 | E6: 8001 | F6: 8267 | G6: 29717 | H6: 8360 | I6: 9202 | J6: 11082 | K6: 8031 | L6: 36675
B7: Operating profit | C7: 1217 | D7: 1765 | E7: 1958 | F7: 1718 | G7: 6658 | H7: 1546 | I7: 1890 | J7: 3125 | K7: 1756 | L7: 8317
B8: - operating margin, % | C8: 0.201 | D8: 0.238 | E8: 0.245 | F8: 0.208 | G8: 0.224 | H8: 0.185 | I8: 0.205 | J8: 0.282 | K8: 0.219 | L8: 0.227
B9: Depreciation and amortization | C9: 1973 | D9: 2300 | E9: 2437 | F9: 2636 | G9: 9346 | H9: 2869 | I9: 2871 | J9: 2927 | K9: 2183 | L9: 10850
B10: - as % of revenue | C10: 0.326 | D10: 0.311 | E10: 0.305 | F10: 0.319 | G10: 0.315 | H10: 0.343 | I10: 0.312 | J10: 0.264 | K10: 0.272 | L10: 0.296
B11: OIBDA | C11: 3190 | D11: 4065 | E11: 4395 | F11: 4354 | G11: 16004 | H11: 4415 | I11: 4762 | J11: 6051 | K11: 3939 | L11: 19167
B12: OIBDA margin, % | C12: 0.528 | D12: 0.549 | E12: 0.549 | F12: 0.527 | G12: 0.539 | H12: 0.528 | I12: 0.517 | J12: 0.546 | K12: 0.491 | L12: 0.523
B13: Net profit | C13: 757 | D13: 1286 | E13: 942 | F13: 1274 | G13: 4259 | H13: 1033 | I13: 1242 | J13: 2271 | K13: 1244 | L13: 5790
B14: - margin, % | C14: 0.125 | D14: 0.174 | E14: 0.118 | F14: 0.154 | G14: 0.143 | H14: 0.124 | I14: 0.135 | J14: 0.205 | K14: 0.155 | L14: 0.158
B15: CAPEX | C15: 2588 | D15: 6149 | E15: 2466 | F15: 3664 | G15: 14867 | H15: 2011 | I15: 1891 | J15: 2404 | K15: 1857 | L15: 8162
B16: CAPEX excluding purchases of 3G and 4G licenses | C16: 1222 | D16: 1987 | E16: 2466 | F16: 3664 | G16: 9339 | H16: 2011 | I16: 1891 | J16: 2404 | K16: 1857 | L16: 8162
B17: - as % of revenue | C17: 0.202 | D17: 0.268 | E17: 0.308 | F17: 0.443 | G17: 0.314 | H17: 0.241 | I17: 0.205 | J17: 0.217 | K17: 0.231 | L17: 0.223
B18: Cost to obtain and fulfill contracts | C18: 57 | D18: 54 | E18: 54 | F18: 54 | G18: 219 | H18: 69 | I18: 67 | J18: 81 | K18: 82 | L18: 299
B20: Operating highlights
B21: Mobile business
B22: MTS subscribers, mln | C22: 20.7 | D22: 20.3 | E22: 19.9 | F22: 19.7 | G22: 19.7 | H22: 19.6 | I22: 19.6 | J22: 19.8 | K22: n/a | L22: n/a
B23: Total traffic, bln minutes | C23: 29 | D23: 29.1 | E23: 28.3 | F23: 28.7 | G23: 115.1 | H23: 28.1 | I23: 28 | J23: 27.4
B25: UAH/RUB | C25: 0.48 | D25: 0.42 | E25: ='Ave Forex Rates'!F6 -> 0.42 | F25: ='Ave Forex Rates'!G6 -> 0.42 | G25: ='Ave Forex Rates'!H6 -> 0.44 | H25: ='Ave Forex Rates'!I6 -> 0.41 | I25: ='Ave Forex Rates'!J6 -> 0.41 | J25: ='Ave Forex Rates'!K6 -> 0.39 | K25: ='Ave Forex Rates'!L6 -> 0.38 | L25: ='Ave Forex Rates'!M6 -> 0.4
B27: Amounts in millions of UAH, unless stated
B28: Revenue | C28: 2901 | D28: 3136 | E28: 3340 | F28: 3475 | G28: 12852 | H28: 3453 | I28: 3786 | J28: 4331 | K28: 3077 | L28: 14647
B29: Operating profit | C29: 583 | D29: 747 | E29: 818 | F29: 721 | G29: 2869 | H29: 639 | I29: 778 | J29: 1220 | K29: 674 | L29: 3311
B30: - operating margin, % | C30: 0.201 | D30: 0.238 | E30: 0.245 | F30: 0.208 | G30: 0.223 | H30: 0.185 | I30: 0.205 | J30: 0.282 | K30: 0.219 | L30: 0.226
B31: Depreciation and amortization | C31: 947 | D31: 975 | E31: 1017 | F31: 1109 | G31: 4048 | H31: 1185 | I31: 1181 | J31: 1145 | K31: 836 | L31: 4347
B32: - as % of revenue | C32: 0.326 | D32: 0.311 | E32: 0.305 | F32: 0.319 | G32: 0.315 | H32: 0.343 | I32: 0.312 | J32: 0.264 | K32: 0.272 | L32: 0.297
B33: OIBDA | C33: 1530 | D33: 1722 | E33: 1835 | F33: 1830 | G33: 6917 | H33: 1823 | I33: 1959 | J33: 2366 | K33: 1510 | L33: 7658
B34: OIBDA margin, % | C34: 0.528 | D34: 0.549 | E34: 0.549 | F34: 0.527 | G34: 0.538 | H34: 0.528 | I34: 0.517 | J34: 0.546 | K34: 0.491 | L34: 0.523
B35: Net profit | C35: 367 | D35: 543 | E35: 394 | F35: 536 | G35: 1840 | H35: 426 | I35: 511 | J35: 888 | K35: 477 | L35: 2302
B36: - margin, % | C36: 0.126 | D36: 0.173 | E36: 0.118 | F36: 0.154 | G36: 0.143 | H36: 0.124 | I36: 0.135 | J36: 0.205 | K36: 0.155 | L36: 0.157
B37: CAPEX | C37: 1213 | D37: 2650 | E37: 1030 | F37: 1544 | G37: 6437 | H37: 831 | I37: 778 | J37: 946 | K37: 712 | L37: 3266
B38: CAPEX excluding purchases of 3G license | C38: 582 | D38: 848 | E38: 1030 | F38: 1544 | G38: 4004 | H38: 831 | I38: 778 | J38: 946 | K38: 712 | L38: 3266
B39: - as % of revenue | C39: 0.201 | D39: 0.27 | E39: 0.308 | F39: 0.444 | G39: 0.312 | H39: 0.241 | I39: 0.206 | J39: 0.218 | K39: 0.231 | L39: 0.223
B40: Cost to obtain and fulfill contracts | C40: 26 | D40: 23 | E40: 23 | F40: 23 | G40: 95 | H40: 29 | I40: 27 | J40: 32 | K40: 26 | L40: 114
B43: *Due to the rounding and translation practices, Russian rubles and functional currency margins, as well as other non-IFRS financial measures, may differ.
B45: ** All financial data for Q4 2019 and 2019 does not include data after December 3, 2019 (date of disposal)

Sheet Armenia
B2: Country highlights:* | C2: 2018 | H2: 2019
B3: Armenia | C3: Q1 | D3: Q2 | E3: Q3 | F3: Q4 | G3: Full year | H3: Q1 | I3: Q2 | J3: Q3 | K3: Q4 | L3: Full year
B5: Amounts in millions of RUB, unless stated
B6: Revenue | C6: 1612 | D6: 1827 | E6: 2037 | F6: 2053 | G6: 7529 | H6: 1811 | I6: 1850 | J6: 1996 | K6: 1970 | L6: 7627
B7: Operating profit | C7: 183 | D7: 150 | E7: 370 | F7: 92 | G7: 795 | H7: 157 | I7: 255 | J7: 374 | K7: 396 | L7: 1182
B8: - operating margin, % | C8: 0.114 | D8: 0.082 | E8: 0.182 | F8: 0.044 | G8: 0.106 | H8: 0.087 | I8: 0.138 | J8: 0.188 | K8: 0.201 | L8: 0.155
B9: Depreciation and amortization | C9: 589 | D9: 670 | E9: 637 | F9: 677 | G9: 2573 | H9: 630 | I9: 657 | J9: 649 | K9: 510 | L9: 2446
B10: - as % of revenue | C10: 0.365 | D10: 0.367 | E10: 0.312 | F10: 0.33 | G10: 0.342 | H10: 0.348 | I10: 0.355 | J10: 0.325 | K10: 0.259 | L10: 0.321
B11: OIBDA | C11: 772 | D11: 821 | E11: 1006 | F11: 769 | G11: 3368 | H11: 788 | I11: 911 | J11: 1023 | K11: 906 | L11: 3628
B12: OIBDA margin, % | C12: 0.479 | D12: 0.449 | E12: 0.494 | F12: 0.374 | G12: 0.447 | H12: 0.435 | I12: 0.492 | J12: 0.513 | K12: 0.46 | L12: 0.476
B13: Net profit | C13: 113 | D13: -250 | E13: 448 | F13: -958 | G13: -647 | H13: -1673 | I13: 64 | J13: 342 | K13: 372 | L13: -895
B14: - margin, % | C14: 0.07 | D14: n/a | E14: 0.22 | F14: n/a | G14: n/a | H14: n/a | I14: 0.035 | J14: 0.171 | K14: 0.189 | L14: n/a
B15: CAPEX | C15: 80 | D15: 81 | E15: 275 | F15: 1550 | G15: 1986 | H15: 103 | I15: 255 | J15: 511 | K15: 890 | L15: 1759
B16: CAPEX excluding purchases of 4G licenses | C16: 80 | D16: 81 | E16: 275 | F16: 1550 | G16: 1986 | H16: 103 | I16: 232 | J16: 279 | K16: 890 | L16: 1504
B17: - as % of revenue | C17: 0.05 | D17: 0.044 | E17: 0.135 | F17: 0.755 | G17: 0.264 | H17: 0.057 | I17: 0.126 | J17: 0.14 | K17: 0.452 | L17: 0.197
B19: Operating highlights
B20: Mobile business
B21: MTS subscribers, mln | C21: 2100 | D21: 2107.6 | E21: 2152.4 | F21: 2128.1 | G21: 2128.1 | H21: 2119 | I21: 2149 | J21: 2217.2 | K21: 2207.4 | L21: =K21 -> 2207.4
B22: Total traffic, bln minutes | C22: 3534 | D22: 3781 | E22: 3851 | F22: 3827 | G22: 14993 | H22: 3631 | I22: 3947 | J22: 4045 | K22: 4022 | L22: 15645
B24: AMD/RUB | C24: 8.47 | D24: 7.82 | E24: ='Ave Forex Rates'!F8 -> 7.37 | F24: ='Ave Forex Rates'!G8 -> 7.3 | G24: ='Ave Forex Rates'!H8 -> 7.74 | H24: ='Ave Forex Rates'!I8 -> 7.37 | I24: ='Ave Forex Rates'!J8 -> 7.45 | J24: ='Ave Forex Rates'!K8 -> 7.38 | K24: ='Ave Forex Rates'!L8 -> 7.49 | L24: ='Ave Forex Rates'!M8 -> 7.42
B26: Amounts in millions of AMD, unless stated
B27: Revenue | C27: 13647 | D27: 14275 | E27: 15008 | F27: 14985 | G27: 57915 | H27: 13348 | I27: 13782 | J27: 14724 | K27: 14760 | L27: 56614
B28: Operating profit | C28: 1547 | D28: 1159 | E28: 2738 | F28: 689 | G28: 6133 | H28: 1147 | I28: 1895 | J28: 2763 | K28: 2970 | L28: 8775
B29: - operating margin, % | C29: 0.113 | D29: 0.081 | E29: 0.182 | F29: 0.046 | G29: 0.106 | H29: 0.086 | I29: 0.137 | J29: 0.188 | K29: 0.201 | L29: 0.155
B30: Depreciation and amortization | C30: 4985 | D30: 5241 | E30: 4689 | F30: 4946 | G30: 19861 | H30: 4645 | I30: 4892 | J30: 4787 | K30: 3818 | L30: 18142
B31: - as % of revenue | C31: 0.365 | D31: 0.367 | E31: 0.312 | F31: 0.33 | G31: 0.343 | H31: 0.348 | I31: 0.355 | J31: 0.325 | K31: 0.259 | L31: 0.32
B32: OIBDA | C32: 6532 | D32: 6400 | E32: 7427 | F32: 5636 | G32: 25995 | H32: 5792 | I32: 6787 | J32: 7550 | K32: 6788 | L32: 26917
B33: OIBDA margin, % | C33: 0.479 | D33: 0.448 | E33: 0.495 | F33: 0.376 | G33: 0.449 | H33: 0.434 | I33: 0.492 | J33: 0.513 | K33: 0.46 | L33: 0.475
B34: Net profit | C34: 956 | D34: -1928 | E34: 3279 | F34: -6868 | G34: -4561 | H34: -12554 | I34: 477 | J34: 2526 | K34: 2791 | L34: -6760
B35: - margin, % | C35: 0.07 | D35: n/a | E35: 0.218 | F35: n/a | G35: n/a | H35: n/a | I35: 0.035 | J35: 0.172 | K35: 0.189 | L35: n/a
B36: CAPEX | C36: 675 | D36: 634 | E36: 2047 | F36: 11275 | G36: 14631 | H36: 765 | I36: 1902 | J36: 3796 | K36: 6707 | L36: 13170
B37: CAPEX excluding purchases of 4G licenses | C37: 675 | D37: 634 | E37: 2047 | F37: 11275 | G37: 14631 | H37: 765 | I37: 1732 | J37: 2046 | K37: 6707 | L37: 11250
B38: - as % of revenue | C38: 0.049 | D38: 0.044 | E38: 0.136 | F38: 0.752 | G38: 0.253 | H38: 0.057 | I38: 0.126 | J38: 0.139 | K38: 0.454 | L38: 0.199
B40: *Due to the rounding and translation practices, Russian rubles and functional currency margins, as well as other non-IFRS financial measures, may differ.

Sheet Turkmenistan
B2: Country highlights:* | C2: 2018 | H2: 2019
B3: Turkmenistan | C3: Q1 | D3: Q2 | E3: Q3 | F3: Q4 | G3: Full year | H3: Q1 | I3: Q2 | J3: Q3 | K3: Q4 | L3: Full year
B5: Amounts in millions of RUB, unless stated
B6: Revenue | C6: 0 | D6: 0 | E6: 0 | F6: 0 | G6: 0 | H6: 0 | I6: 0 | J6: 0 | K6: 0 | L6: 0
B7: Operating profit | C7: -136 | D7: -142 | E7: -72 | F7: -464 | G7: -814 | H7: -86 | I7: 14 | J7: -25 | K7: -114 | L7: -211
B8: - operating margin, % | C8: n/a | D8: n/a | E8: n/a | F8: n/a | G8: n/a | H8: n/a | I8: n/a | J8: n/a | K8: n/a | L8: n/a
B9: Depreciation and amortization | C9: 0 | D9: 0 | E9: 0 | F9: 0 | G9: 0 | H9: 0 | I9: 0 | J9: 0 | K9: 0 | L9: 0
B10: - as % of revenue | C10: n/a | D10: n/a | E10: n/a | F10: n/a | G10: n/a | H10: n/a | I10: n/a | J10: n/a | K10: n/a | L10: n/a
B11: OIBDA | C11: -136 | D11: -142 | E11: -72 | F11: -464 | G11: -814 | H11: -86 | I11: 14 | J11: -25 | K11: -114 | L11: -211
B12: OIBDA margin, % | C12: n/a | D12: n/a | E12: n/a | F12: n/a | G12: n/a | H12: n/a | I12: n/a | J12: n/a | K12: n/a | L12: n/a
B13: Net profit | C13: -32 | D13: -134 | E13: -67 | F13: -461 | G13: -694 | H13: -82 | I13: 10 | J13: -24 | K13: 37 | L13: -59
B14: - margin, % | C14: n/a | D14: n/a | E14: n/a | F14: n/a | G14: n/a | H14: n/a | I14: n/a | J14: n/a | K14: n/a | L14: n/a
B15: CAPEX | C15: 1 | D15: 6 | E15: 2 | F15: 5 | G15: 14 | H15: 1 | I15: 1 | J15: 1 | K15: 0 | L15: 3
B16: - as % of revenue | C16: n/a | D16: n/a | E16: n/a | F16: n/a | G16: n/a | H16: n/a | I16: n/a | J16: n/a | K16: n/a | L16: n/a
B18: Operating highlights
B19: Mobile business
B20: MTS subscribers, thous | C20: n/a | D20: n/a | E20: n/a | F20: n/a | G20: n/a | H20: n/a | I20: n/a | J20: n/a | K20: n/a | L20: n/a
B21: Total traffic, mln minutes | C21: n/a | D21: n/a | E21: n/a | F21: n/a | G21: n/a | H21: n/a | I21: n/a | J21: n/a
B23: TMT/RUB | C23: ='Ave Forex Rates'!D7 -> 0.06 | D23: ='Ave Forex Rates'!E7 -> 0.057 | E23: ='Ave Forex Rates'!F7 -> 0.05 | F23: ='Ave Forex Rates'!G7 -> 0.05 | G23: ='Ave Forex Rates'!H7 -> 0.06 | H23: ='Ave Forex Rates'!I7 -> 0.05 | I23: ='Ave Forex Rates'!J7 -> 0.05 | J23: ='Ave Forex Rates'!K7 -> 0.054 | K23: ='Ave Forex Rates'!L7 -> 0.055 | L23: ='Ave Forex Rates'!M7 -> 0.054
B25: Amounts in millions of TMT, unless stated
B26: Revenue | C26: 0 | D26: 0 | E26: 0 | F26: 0 | G26: 0 | H26: 0 | I26: 0 | J26: 0 | K26: 0 | L26: 0
B27: Operating profit | C27: -8.4 | D27: -8 | E27: -3.8 | F27: -24.3 | G27: -44.5 | H27: -4.5 | I27: 0.7 | J27: -1.3 | K27: -6.4 | L27: 0
B28: - operating margin, % | C28: n/a | D28: n/a | E28: n/a | F28: n/a | G28: n/a | H28: n/a | I28: n/a | J28: n/a | K28: n/a | L28: n/a
B29: Depreciation and amortization | C29: 0 | D29: 0 | E29: 0 | F29: 0 | G29: 0 | H29: 0 | I29: 0 | J29: 0 | K29: 0 | L29: 0
B30: - as % of revenue | C30: n/a | D30: n/a | E30: n/a | F30: n/a | G30: n/a | H30: n/a | I30: n/a | J30: n/a | K30: n/a | L30: n/a
B31: OIBDA | C31: -8.4 | D31: -8 | E31: -3.8 | F31: -24.3 | G31: -44.5 | H31: -4.5 | I31: 0.7 | J31: -1.3 | K31: -6.4 | L31: 0
B32: OIBDA margin, % | C32: n/a | D32: n/a | E32: n/a | F32: n/a | G32: n/a | H32: n/a | I32: n/a | J32: n/a | K32: n/a | L32: n/a
B33: Net profit | C33: -2 | D33: -7.6 | E33: -3.5 | F33: -24.2 | G33: -37.3 | H33: -4.4 | I33: 0.6 | J33: -1.3 | K33: 2.1 | L33: 0
B34: - margin % | C34: n/a | D34: n/a | E34: n/a | F34: n/a | G34: n/a | H34: n/a | I34: n/a | J34: n/a | K34: n/a | L34: n/a
B35: CAPEX | C35: 0.1 | D35: 0.4 | E35: 0.1 | F35: 0.2 | G35: 0.8 | H35: 0 | I35: 0 | J35: 0.1 | K35: 0 | L35: 0.2
B36: - as % of revenue | C36: n/a | D36: n/a | E36: n/a | F36: n/a | G36: n/a | H36: n/a | I36: n/a | J36: n/a | K36: n/a | L36: n/a
B39: *Due to the rounding and translation practices, Russian rubles and functional currency margins, as well as other non-IFRS financial measures, may differ.

Sheet Belarus
B2: Country highlights:* | C2: 2018 | H2: 2019
B3: Belarus** | C3: Q1 | D3: Q2 | E3: Q3 | F3: Q4 | G3: Full year | H3: Q1 | I3: Q2 | J3: Q3 | K3: Q4 | L3: Full year
B5: Amounts in millions of RUB, unless stated
B6: Revenue | C6: 5662 | D6: 6569 | E6: 7553 | F6: 7911 | G6: 27695 | H6: 7259 | I6: 7756 | J6: 8633 | K6: 8944 | L6: 32592
B7: Operating profit | C7: 2060 | D7: 2566 | E7: 3126 | F7: 2659 | G7: 10411 | H7: 2773 | I7: 2973 | J7: 3413 | K7: 3131 | L7: 12290
B8: - operating margin, % | C8: 0.364 | D8: 0.391 | E8: 0.414 | F8: 0.336 | G8: 0.376 | H8: 0.382 | I8: 0.383 | J8: 0.395 | K8: 0.35 | L8: 0.377
B9: Depreciation and amortization | C9: 1051 | D9: 1130 | E9: 1266 | F9: 1235 | G9: 4682 | H9: 1169 | I9: 1214 | J9: 1250 | K9: 1398 | L9: 5031
B10: - as % of revenue | C10: 0.186 | D10: 0.172 | E10: 0.168 | F10: 0.156 | G10: 0.169 | H10: 0.161 | I10: 0.157 | J10: 0.145 | K10: 0.156 | L10: 0.154
B11: OIBDA | C11: 3111 | D11: 3696 | E11: 4392 | F11: 3893 | G11: 15092 | H11: 3942 | I11: 4187 | J11: 4664 | K11: 4528 | L11: 17321
B12: OIBDA margin, % | C12: 0.549 | D12: 0.563 | E12: 0.581 | F12: 0.492 | G12: 0.545 | H12: 0.543 | I12: 0.54 | J12: 0.54 | K12: 0.506 | L12: 0.531
B13: Net profit | C13: 1531 | D13: 2214 | E13: 1988 | F13: 2019 | G13: 7752 | H13: 2108 | I13: 2386 | J13: 2649 | K13: 2211 | L13: 9354
B14: - margin, % | C14: 0.27 | D14: 0.337 | E14: 0.263 | F14: 0.255 | G14: 0.28 | H14: 0.29 | I14: 0.308 | J14: 0.307 | K14: 0.247 | L14: 0.287
B15: CAPEX | C15: 477 | D15: 402 | E15: 582 | F15: 1351 | G15: 2812 | H15: 814 | I15: 1497 | J15: 783 | K15: 1201 | L15: 4296
B16: CAPEX excluding purchases of 3G license | C16: 477 | D16: 402 | E16: 582 | F16: 1351 | G16: 2812 | H16: 814 | I16: 814 | J16: 783 | K16: 1201 | L16: 3612
B17: - as % of revenue | C17: 0.084 | D17: 0.061 | E17: 0.077 | F17: 0.171 | G17: 0.102 | H17: 0.112 | I17: 0.105 | J17: 0.091 | K17: 0.134 | L17: 0.111
B19: Operating highlights
B20: Mobile business
B21: MTS subscribers, mln | C21: 5.3 | D21: 5.3 | E21: 5.4 | F21: 5.5 | G21: 5.5 | H21: 5.5 | I21: 5.6 | J21: 5.6 | K21: 5.6 | L21: =K21 -> 5.6
B22: Total traffic, bln minutes | C22: 8 | D22: 8.7 | E22: 8.6 | F22: 8.66 | G22: 33.96 | H22: 8.5 | I22: 9.2 | J22: 9.3 | K22: 9.3 | L22: 36.3
B24: BYN/RUB (BYR/RUB) | C24: 0.03 | D24: 0.03 | E24: ='Ave Forex Rates'!F9 -> 0.03 | F24: ='Ave Forex Rates'!G9 -> 0.03 | G24: ='Ave Forex Rates'!H9 -> 0.03 | H24: ='Ave Forex Rates'!I9 -> 0.03 | I24: ='Ave Forex Rates'!J9 -> 0.03 | J24: ='Ave Forex Rates'!K9 -> 0.03 | K24: ='Ave Forex Rates'!L9 -> 0.03 | L24: ='Ave Forex Rates'!M9 -> 0.03
B26: Amounts in millions of BYN, unless stated
B27: Revenue | C27: 196.42 | D27: 212.89 | E27: 235.9 | F27: 252.92 | G27: 898.13 | H27: 235.68 | I27: 251.37 | J27: 274.78 | K27: 291.14 | L27: 1052.97
B28: Operating profit | C28: 71.46 | D28: 83.18 | E28: 97.82 | F28: 84.73 | G28: 337.19 | H28: 90.04 | I28: 96.38 | J28: 108.64 | K28: 101.62 | L28: 396.68
B29: - operating margin, % | C29: 0.364 | D29: 0.391 | E29: 0.415 | F29: 0.335 | G29: 0.375 | H29: 0.382 | I29: 0.383 | J29: 0.395 | K29: 0.349 | L29: 0.377
B30: Depreciation and amortization | C30: 36.47 | D30: 36.62 | E30: 39.52 | F30: 39.49 | G30: 152.1 | H30: 37.95 | I30: 39.37 | J30: 39.8 | K30: 45.51 | L30: 162.63
B31: - as % of revenue | C31: 0.186 | D31: 0.172 | E31: 0.167 | F31: 0.156 | G31: 0.169 | H31: 0.161 | I31: 0.157 | J31: 0.145 | K31: 0.156 | L31: 0.154
B32: OIBDA | C32: 107.93 | D32: 119.81 | E32: 137.26 | F32: 124.56 | G32: 489.56 | H32: 127.99 | I32: 135.75 | J32: 148.43 | K32: 147.13 | L32: 559.3
B33: OIBDA margin, % | C33: 0.549 | D33: 0.563 | E33: 0.582 | F33: 0.492 | G33: 0.545 | H33: 0.543 | I33: 0.54 | J33: 0.54 | K33: 0.505 | L33: 0.531
B34: Net profit | C34: 53.08 | D34: 71.66 | E34: 61.86 | F34: 64.28 | G34: 250.88 | H34: 68.41 | I34: 77.34 | J34: 84.43 | K34: 71.76 | L34: 301.94
B35: - margin % | C35: 0.27 | D35: 0.337 | E35: 0.262 | F35: 0.254 | G35: 0.275 | H35: 0.29 | I35: 0.308 | J35: 0.307 | K35: 0.246 | L35: 0.287
B36: CAPEX | C36: 17 | D36: 13.199 | E36: 18 | F36: 42.591 | G36: 90.79 | H36: 27 | I36: 49 | J36: 25 | K36: 40 | L36: 140
B37: CAPEX excluding purchases of 3G license | C37: 17 | D37: 13.199 | E37: 18 | F37: 42.591 | G37: 90.79 | H37: 27 | I37: 26 | J37: 25 | K37: 40 | L37: 118
B38: - as % of revenue | C38: 0.085 | D38: 0.062 | E38: 0.077 | F38: 0.17 | G38: 0.101 | H38: 0.113 | I38: 0.105 | J38: 0.091 | K38: 0.136 | L38: 0.112
B41: *Due to the rounding and translation practices, Russian rubles and functional currency margins, as well as other non-IFRS financial measures, may differ.
B43: **MTS owns a 49% stake in Mobile TeleSystems LLC, a mobile operator in Belarus, which is not consolidated

Sheet Group reconciliations
C2: 2018 | G2: 2019
B3: MTS Group | C3: Q1 | D3: Q2 | E3: Q3 | F3: Q4 | G3: Q1 | H3: Q2 | I3: Q3 | J3: Q4
B5: Net debt, amounts in millions of RUB, unless stated
B6: Current portion of LT debt | C6: 72544 | D6: 60187 | E6: 13940 | F6: 3256 | G6: 43027 | H6: 68812 | I6: 98672 | J6: 71828
B7: LT debt | C7: 218934 | D7: 250327 | E7: 362523 | F7: 365467 | G7: 344334 | H7: 308368 | I7: 277336 | J7: 271733
B8: Total debt | C8: 291478 | D8: 310514 | E8: 376463 | F8: 368723 | G8: 387361 | H8: 377180 | I8: 376008 | J8: =SUM(J6:J7) -> 343561
B9: Less:
B10: Cash and cash equivalents | C10: 56923 | D10: 57292 | E10: 101144 | F10: 84075 | G10: 66346 | H10: 51243 | I10: 52518 | J10: 38070
B11: ST investments | C11: 26354 | D11: 52970 | E11: 46354 | F11: 47863 | G11: 26588 | H11: 15165 | I11: 15700 | J11: 25618
B12: LT deposits | C12: 4 | D12: 130 | E12: 135 | F12: 139 | G12: 256 | H12: 126 | I12: 129 | J12: 124
B13: SWAPs | C13: 2910 | D13: 4953 | E13: 1227 | F13: 1077.496353 | G13: 788 | H13: 1021 | I13: 625 | J13: 250
B14: Hedge | C14: 1150 | D14: 678 | E14: 725 | F14: 2796.641011 | G14: 974 | H14: -479 | I14: 59 | J14: -955
B15: Net debt | C15: 204137 | D15: 194491 | E15: 226878 | F15: 232771.8626 | G15: 292409 | H15: 310104 | I15: 306977 | J15: =J8-SUM(J10:J14) -> 280454
B18: Financial leverage ratios
B19: Shareholders' equity, RUB mln | C19: ='Statement of financial position'!C40 -> 135814 | D19: ='Statement of financial position'!D40 -> 112510 | E19: ='Statement of financial position'!E40 -> 72042 | F19: ='Statement of financial position'!F40 -> 77565 | G19: ='Statement of financial position'!G40 -> 70724 | H19: ='Statement of financial position'!H40 -> 40538 | I19: ='Statement of financial position'!I40 -> 47647 | J19: ='Statement of financial position'!J40 -> 36394
B20: Total assets, RUB mln | C20: ='Statement of financial position'!C35 -> 702071 | D20: ='Statement of financial position'!D35 -> 752192 | E20: ='Statement of financial position'!E35 -> 907496 | F20: ='Statement of financial position'!F35 -> 915993 | G20: ='Statement of financial position'!G35 -> 870371 | H20: ='Statement of financial position'!H35 -> 863617 | I20: ='Statement of financial position'!I35 -> 882259 | J20: ='Statement of financial position'!J35 -> 823910
B21: LTM adjusted OIBDA, RUB mln * | C21: 182508 | D21: 184729 | E21: 188266 | F21: 190883 | G21: 196498 | H21: 195916 | I21: 198045 | J21: 181103
B22: Net debt/assets | C22: =ROUND(C15/C20, 1) -> 0.3 | D22: 0.3 | E22: 0.3 | F22: =ROUND(F15/F20, 1) -> 0.3 | G22: =ROUND(G15/G20, 1) -> 0.3 | H22: 0.4 | I22: =ROUND(I15/I20, 1) -> 0.3 | J22: 0.3
B23: Net debt/equity | C23: =ROUND(C15/C19, 1) -> 1.5 | D23: 1.7 | E23: 3.1 | F23: =ROUND(F15/F19, 1) -> 3 | G23: =ROUND(G15/G19, 1) -> 4.1 | H23: 7.6 | I23: =ROUND(I15/I19, 1) -> 6.4 | J23: 7.7
B24: Net debt/LTM adjusted OIBDA | C24: =ROUND(C15/C21, 1) -> 1.1 | D24: 1.1 | E24: 1.2 | F24: 1.2 | G24: =ROUND(G15/G21, 1) -> 1.5 | H24: =ROUND(H15/H21, 1) -> 1.6 | I24: =ROUND(I15/I21, 1) -> 1.6 | J24: =ROUND(J15/J21, 1) -> 1.5
B27: Debt composition
B28: By type, %
B29: Credit facilities | C29: 0.558 | D29: 0.5743114746 | E29: 0.666937925 | F29: 0.6812399531 | G29: 0.6799220868 | H29: 0.6414373193 | I29: 0.5716633748 | J29: 0.4639180121
B30: Bonds | C30: 0.442 | D30: 0.4256885254 | E30: 0.333062075 | F30: 0.3187600469 | G30: 0.3200779132 | H30: 0.3585626807 | I30: 0.4283366252 | J30: 0.5360819879
B31: Syndicated loan
B32: By currency, %
B33: RUB | C33: 0.847683133 | D33: 0.8481901757 | E33: 0.9099878852 | F33: 0.9151567824 | G33: 0.9247839634 | H33: 0.9247768573 | I33: 0.9229801448 | J33: 0.919053096
B34: USD | C34: 0.1522119894 | D34: 0.1517078335 | E34: 0.08994529544 | F34: 0.08478323994 | G34: 0.07517314239 | H34: 0.07518978709 | I34: 0.07699306594 | J34: 0.080946903
B35: EUR | C35: 0 | D35: 0 | E35: 0 | F35: 0 | G35: 0 | H35: 0 | I35: 0 | J35: 0
B38: Free cash flow, amounts in millions of RUB
B39: Net cash provided by operating activities | C39: ='Statement of cash flows'!C44 -> 35695 | D39: ='Statement of cash flows'!D44 -> 70062 | E39: ='Statement of cash flows'!E44 -> 110221 | F39: ='Statement of cash flows'!F44 -> 154390 | G39: ='Statement of cash flows'!G44 -> -16093 | H39: ='Statement of cash flows'!H44 -> 4859 | I39: ='Statement of cash flows'!I44 -> 70252 | J39: ='Statement of cash flows'!L44 -> 106652
B40: Less:
B41: Purchases of property, plant and equipment | C41: ='Statement of cash flows'!C50 -> -13096 | D41: ='Statement of cash flows'!D50 -> -27753 | E41: ='Statement of cash flows'!E50 -> -44660 | F41: ='Statement of cash flows'!F50 -> -64731 | G41: ='Statement of cash flows'!G50 -> -12457 | H41: ='Statement of cash flows'!H50 -> -27513 | I41: ='Statement of cash flows'!I50 -> -45000 | J41: ='Statement of cash flows'!L50 -> -68465
B42: Purchases of other intangible assets, excluding purchases of 3G, 4G license in Ukraine and Russia and cost to obtain contracts | C42: ='Statement of cash flows'!C51 -> -3574 | D42: ='Statement of cash flows'!D51 -> -6484 | E42: ='Statement of cash flows'!E51 -> -10758 | F42: ='Statement of cash flows'!F51 -> -21751 | G42: ='Statement of cash flows'!G51 -> -4157 | H42: ='Statement of cash flows'!H51 -> -11781 | I42: ='Statement of cash flows'!I51 -> -16087 | J42: ='Statement of cash flows'!L51 -> -23016
B43: Cost to obtain and fulfill contracts | C43: ='Statement of cash flows'!C52 -> -1099 | D43: ='Statement of cash flows'!D52 -> -2085 | E43: ='Statement of cash flows'!E52 -> -3524 | F43: ='Statement of cash flows'!F52 -> -4764 | G43: ='Statement of cash flows'!G52 -> -1093 | H43: ='Statement of cash flows'!H52 -> -2307 | I43: ='Statement of cash flows'!I52 -> -3692 | J43: ='Statement of cash flows'!L52 -> -4651
B44: Purchase of Avantage | E44: ='Statement of cash flows'!E54 -> -7559 | F44: ='Statement of cash flows'!F54 -> -7559 | G44: ='Statement of cash flows'!G54 -> 0 | H44: ='Statement of cash flows'!H54 -> 0 | I44: ='Statement of cash flows'!I54 -> 0 | J44: ='Statement of cash flows'!L54 -> 0
B45: Proceeds from sale of property, plant and equipment | C45: ='Statement of cash flows'!C55 -> 442 | D45: ='Statement of cash flows'!D55 -> 2289 | E45: ='Statement of cash flows'!E55 -> 3924 | F45: ='Statement of cash flows'!F55 -> 5905 | G45: ='Statement of cash flows'!G55 -> 1040 | H45: ='Statement of cash flows'!H55 -> 2903 | I45: ='Statement of cash flows'!I55 -> 5067 | J45: ='Statement of cash flows'!L55 -> 6536
B46: Proceeds from sale of subsidiaries | F46: ='Statement of cash flows'!F60 -> 619 | G46: ='Statement of cash flows'!G60 -> 0 | H46: ='Statement of cash flows'!H60 -> 0 | I46: ='Statement of cash flows'!I60 -> 0 | J46: ='Statement of cash flows'!L60 -> 37386
B47: Proceeds from sale of associates | F47: ='Statement of cash flows'!F61 -> 0 | G47: ='Statement of cash flows'!G61 -> 3000 | H47: ='Statement of cash flows'!H61 -> 3000 | I47: ='Statement of cash flows'!I61 -> 3067 | J47: ='Statement of cash flows'!L61 -> 3067
B48: Investments in associates | C48: ='Statement of cash flows'!C58 -> -1158 | D48: ='Statement of cash flows'!D58 -> -2101 | E48: ='Statement of cash flows'!E58 -> -3871 | F48: ='Statement of cash flows'!F58 -> -3871 | G48: ='Statement of cash flows'!G58 -> 0 | H48: ='Statement of cash flows'!H58 -> 0 | I48: ='Statement of cash flows'!I58 -> 0 | J48: ='Statement of cash flows'!L58 -> -75
B49: Acquisition of subsidiaries, net of cash acquired | C49: ='Statement of cash flows'!C49 -> -3286 | D49: ='Statement of cash flows'!D49 -> -3093 | E49: ='Statement of cash flows'!E49 -> -3458 | F49: ='Statement of cash flows'!F49 -> -3444 | G49: ='Statement of cash flows'!G49 -> -1639 | H49: ='Statement of cash flows'!H49 -> -2030 | I49: ='Statement of cash flows'!I49 -> -2052 | J49: ='Statement of cash flows'!L49 -> -2052
B50: Free cash flow | C50: =SUM(C39:C49) -> 13924 | D50: 30835 | E50: 40315 | F50: =SUM(F39:F49) -> 54794 | G50: =SUM(G39:G49) -> -31399 | H50: -32869 | I50: =SUM(I39:I49) -> 11555 | J50: 55382
B52: * Presented without effects of new standards

Sheet Debt repayment schedule
B2: As of December 31, 2019 | C2: Q1 2020 | D2: Q2 2020 | E2: Q3 2020 | F2: Q4 2020 | G2: 2021 | H2: 2022 | I2: 2023 | J2: 2024 | K2: Thereafter
B3: MTS Group
B5: Debt repayments, RUB bln | C5: 27.6 | D5: 28.9 | E5: 10.2 | F5: 5.1 | G5: 42 | H5: 41.5 | I5: 42.8 | J5: 110.4 | K5: 35
B7: Maturities of major publicly traded debt instruments*
B8: 2020 Eurobond, USD mln** | D8: 750
B9: 2023 Eurobond, USD mln*** | I9: 500
B11: *Amounts before discounts
B12: ** MTS currently holds USD 449.1 mln worth of 2020 Eurobonds on its balance sheet
B13: *** MTS currently holds USD 51.7 mln worth of 2023 Eurobonds on its balance sheet

Sheet Ave Forex Rates
B2: MTS Group | D2: 2018 | I2: 2019
B3: Average Forex rates per country | D3: Q1 | E3: Q2 | F3: Q3 | G3: Q4 | H3: Full year | I3: Q1 | J3: Q2 | K3: Q3 | L3: Q4 | M3: Full year
B5: Russia | C5: RUB/USD | D5: 56.88 | E5: 61.8 | F5: 65.5 | G5: 66.5 | H5: 62.71 | I5: 66.13 | J5: 64.56 | K5: 64.57 | L5: 63.72 | M5: 64.74
B6: Ukraine | C6: UAH/RUB | D6: 0.48 | E6: 0.42 | F6: 0.42 | G6: 0.42 | H6: 0.44 | I6: 0.41 | J6: 0.41 | K6: 0.39 | L6: 0.38 | M6: 0.4
B7: Turkmenistan | C7: TMT/RUB | D7: 0.06 | E7: 0.057 | F7: 0.05 | G7: 0.05 | H7: 0.06 | I7: 0.05 | J7: 0.05 | K7: 0.054 | L7: 0.055 | M7: 0.054
B8: Armenia | C8: AMD/RUB | D8: 8.47 | E8: 7.82 | F8: 7.37 | G8: 7.3 | H8: 7.74 | I8: 7.37 | J8: 7.45 | K8: 7.38 | L8: 7.49 | M8: 7.42
B9: Belarus | C9: BYN/RUB | D9: 0.03 | E9: 0.03 | F9: 0.03 | G9: 0.03 | H9: 0.03 | I9: 0.03 | J9: 0.03 | K9: 0.03 | L9: 0.03 | M9: 0.03

Sheet Glossary
G2: Glossary
